lending/lending_fUSD_20240504
["ID","MTS","AMOUNT","RATE_DAILY","PERIOD"]
[325407269,1714854641850,-153.97306684,0.00018178,2]
[325407270,1714854641859,-222.58705407,0.00018221,2]
[325407271,1714854641869,-152.57440341,0.0001823,2]
[325407272,1714854641879,-848.43342503,0.00018302,2]
[325407273,1714854641888,-152.57440341,0.00018478,2]
[325407274,1714854641898,-152.57440341,0.00018528,2]
[325407275,1714854641907,-153.5496588,0.00018564,2]
[325407276,1714854641917,-574.1,0.00018642,3]
[325407277,1714854641926,-152.57440341,0.00018669,2]
[325407278,1714854641935,-169.46313178,0.00018729,2]
[325407279,1714854641945,-1055.0,0.00018741,2]
[325407280,1714854641954,-157.20955542,0.0001876,2]
[325407281,1714854641964,-222.58705407,0.00018959,2]
[325407282,1714854641973,-156.79452351,0.00019048,2]
[325407283,1714854641982,-154.86984597,0.00019123,2]
[325407284,1714854641992,-834.66,0.00019126,2]
[325407285,1714854642001,-163.3784983,0.00019178,2]
[325407286,1714854642010,-5430.02,0.00019178,2]
[325407287,1714854642020,-152.57440341,0.0001918,2]
[325407288,1714854642029,-169.46313178,0.00019255,2]
[325407289,1714854642038,-663.83706763,0.00019267,2]
[325407290,1714854642048,-169.46313178,0.00019297,2]
[325407291,1714854642058,-159.97386241,0.00019389,2]
[325407292,1714854642068,-152.58015286,0.00019399,2]
[325407293,1714854642078,-152.57440341,0.00019512,2]
[325407294,1714854642088,-543.22508611,0.00019591,2]
[325407295,1714854642097,-152.57440341,0.00019722,2]
[325407296,1714854642107,-169.46313178,0.00019727,2]
[325407297,1714854642116,-222.58705407,0.00019749,2]
[325407298,1714854642125,-153.5496588,0.00019794,2]
[325407299,1714854642136,-1008.44,0.000198,2]
[325407300,1714854642145,-305.32,0.000198,2]
[325407301,1714854642155,-6374.50660859,0.000199,4]
[325407302,1714854642164,-153.20799384,0.000199,2]
[325407303,1714854642174,-170.55,0.00019904,2]
[325407304,1714854642184,-543.22508611,0.00019968,2]
[325407305,1714854642194,-153.97306684,0.00019982,2]
[325407306,1714854642203,-860.48028371,0.0002,2]
[325407307,1714854642213,-1258.92106761,0.0002,2]
[325407308,1714854642223,-6227.01127323,0.0002,2]
[325407309,1714854642234,-5175.72990395,0.0002,2]
[325407310,1714854642243,-1769.02008658,0.0002,2]
[325407311,1714854642253,-1000.0,0.0002,3]
[325407312,1714854642263,-1000.0,0.0002,3]
[325407313,1714854642273,-1000.0,0.0002,3]
[325407314,1714854642285,-1000.0,0.0002,3]
[325407315,1714854642300,-500.0,0.0002,2]
[325407316,1714854642311,-37405.34258539,0.0002,2]
[325407317,1714854642322,-1037.08776167,0.0002,2]
[325407318,1714854642332,-167.62462793,0.0002,2]
[325407319,1714854642343,-1041.33176482,0.0002,2]
[325407320,1714854642353,-500.0,0.0002,3]
[325407321,1714854642363,-152.49817687,0.00020187,2]
[325407322,1714854642373,-169.46313178,0.00020201,2]
[325407323,1714854642384,-169.46313178,0.00020312,2]
[325407324,1714854642394,-151.76757164,0.00020398,2]
[325407325,1714854642404,-195.56,0.00020543,2]
[325407326,1714854642415,-222.58705407,0.0002066,2]
[325407327,1714854642425,-574.1,0.00020681,3]
[325407328,1714854642438,-492.82793342,0.00020856,2]
[325407329,1714854642448,-155.0,0.000209,2]
[325407330,1714854642458,-543.22508611,0.00020914,2]
[325407331,1714854642469,-543.22508611,0.0002099,2]
[325407332,1714854642480,-716.44946922,0.00021,2]
[325407333,1714854642490,-848.43342503,0.00021003,2]
[325407334,1714854642500,-543.22508611,0.00021073,2]
[325407335,1714854642511,-157.20955542,0.00021146,2]
[325407336,1714854642521,-222.58705407,0.00021169,2]
[325407337,1714854642531,-155.51385051,0.00021369,2]
[325407338,1714854642540,-305.32,0.0002137,2]
[325407339,1714854642550,-1285.317034,0.0002152,2]
[325407340,1714854642560,-157.20955542,0.00021559,2]
[325407341,1714854642569,-158.852983,0.00021618,2]
[325407342,1714854642578,-159.34,0.00021644,2]
[325407343,1714854642588,-435.89,0.00021644,2]
[325407344,1714854642597,-252.25,0.00021644,2]
[325407345,1714854642607,-169.85,0.00021644,2]
[325407346,1714854642616,-205.84,0.00021644,2]
[325407347,1714854642627,-166.66666666,0.00021793,2]
[325407348,1714854642637,-156.79452353,0.00021801,2]
[325407349,1714854642647,-6757.61638509,0.000219,2]
[325407350,1714854642658,-250.0,0.00021918,2]
[325407351,1714854642668,-2000.0,0.00021918,3]
[325407352,1714854642679,-2000.0,0.00021918,2]
[325407353,1714854642689,-158.852983,0.00021978,2]
[325407354,1714854642700,-550.0,0.00022,3]
[325407355,1714854642711,-157.20955542,0.00022053,2]
[325407356,1714854642722,-152.57440341,0.00022136,2]
[325407357,1714854642732,-158.852983,0.00022339,2]
[325407358,1714854642744,-153.5496588,0.00022341,2]
[325407359,1714854642755,-169.46313178,0.00022445,2]
[325407360,1714854642766,-10366.94913681,0.000225,2]
[325407361,1714854642777,-663.83706763,0.000225,2]
[325407362,1714854642788,-543.22508611,0.0002256,2]
[325407363,1714854642798,-543.22508611,0.00022589,2]
[325407364,1714854642809,-168.34794821,0.00022615,2]
[325407365,1714854642819,-166.66666666,0.00022635,2]
[325407366,1714854642830,-158.852983,0.00022699,2]
[325407367,1714854642841,-574.1,0.00022721,3]
[325407368,1714854642851,-151.90116213,0.00022816,2]
[325407369,1714854642862,-323.1,0.0002294,2]
[325407370,1714854642873,-17693.23462494,0.00023,2]
[325407372,1714854642883,-334.59231,0.00023,2]
[325407374,1714854642893,-169.46313178,0.00023034,2]
[325407376,1714854642903,-169.46313178,0.00023151,2]
[325407378,1714854642913,-152.57440341,0.0002317,2]
[325407380,1714854642926,-153.20799381,0.00023178,2]
[325407382,1714854642937,-169.46313178,0.00023312,2]
[325407384,1714854642947,-543.22508611,0.0002334,2]
[325407387,1714854642959,-2000.61208485,0.000234,2]
[325407389,1714854642969,-151.90116213,0.00023568,2]
[325407391,1714854642979,-166.66666666,0.00023692,2]
[325407393,1714854642989,-848.43342503,0.00023704,2]
[325407395,1714854642999,-153.61655889,0.00023736,2]
[325407397,1714854643009,-222.58705407,0.00023818,2]
[325407399,1714854643019,-154.86984597,0.00023995,2]
[325407401,1714854643029,-432.11468821,0.00024,2]
[325407404,1714854643039,-600.0,0.00024,3]
[325407407,1714854643049,-157.21535148,0.00024056,2]
[325407411,1714854643059,-543.22508611,0.00024108,2]
[325407414,1714854643068,-180.0,0.0002423,2]
[325407416,1714854643080,-222.58705407,0.00024327,2]
[325407419,1714854643092,-151.90116213,0.00024336,2]
[325407421,1714854643101,-169.46313178,0.00024349,2]
[325407423,1714854643111,-150.49826618,0.00024453,2]
[325407425,1714854643123,-222.58705407,0.00024476,2]
[325407427,1714854643134,-169.46313178,0.00024522,2]
[325407429,1714854643146,-222.58705407,0.00024578,2]
[325407431,1714854643156,-206.6,0.00024658,2]
[325407433,1714854643167,-1540.82,0.00024658,2]
[325407435,1714854643178,-543.22508611,0.00024743,2]
[325407437,1714854643188,-574.1,0.00024761,3]
[325407439,1714854643198,-500.0,0.000248,2]
[325407442,1714854643208,-200.0,0.000248,2]
[325407444,1714854643218,-543.22508611,0.00024803,2]
[325407446,1714854643227,-492.82793342,0.00024884,2]
[325407448,1714854643238,-151.90116213,0.00024935,2]
[325407450,1714854643248,-157.19505892,0.00025,60]
[325407452,1714854643258,-456.66329758,0.00025,7]
[325407454,1714854643269,-155.0,0.00025,2]
[325407456,1714854643278,-5000.0,0.00025,2]
[325407458,1714854643288,-471.39951687,0.00025,2]
[325407460,1714854643298,-155.0,0.00025,2]
[325407462,1714854643308,-2607.87522376,0.00025,2]
[325407464,1714854643318,-1000.0,0.00025,4]
[325407466,1714854643327,-1000.0,0.00025,4]
[325407468,1714854643339,-500.0,0.00025,2]
[325407470,1714854643348,-157.20955542,0.00025021,2]
[325407471,1714854643488,-222.58705407,0.00025054,2]
[325407472,1714854643498,-169.46313178,0.00025223,2]
[325407473,1714854643509,-152.57440341,0.0002539,2]
[325407474,1714854643518,-152.57440341,0.00025398,2]
[325407475,1714854643527,-152.49817687,0.00025409,2]
[325407476,1714854643537,-153.5496588,0.00025439,2]
[325407477,1714854643546,-663.83706763,0.00025733,2]
[325407478,1714854643555,-222.58705407,0.00025911,2]
[325407480,1714854643564,-650.0,0.00026,3]
[325407481,1714854643573,-222.58705407,0.0002602,2]
[325407482,1714854643582,-157.21535148,0.00026024,2]
[325407483,1714854643592,-222.58705407,0.00026127,2]
[325407484,1714854643602,-157.20955542,0.0002618,2]
[325407485,1714854643611,-153.5496588,0.00026299,2]
[325407486,1714854643621,-153.61655889,0.00026313,2]
[325407487,1714854643631,-848.43342503,0.00026405,2]
[325407488,1714854643640,-222.58705407,0.00026661,2]
[325407489,1714854643650,-169.46313178,0.00026735,2]
[325407490,1714854643660,-574.1,0.00026801,5]
[325407491,1714854643671,-151.90116213,0.00026831,2]
[325407492,1714854643682,-152.57440341,0.00026841,2]
[325407493,1714854643692,-1740.25372259,0.00027,2]
[325407494,1714854643702,-1000.0,0.00027,4]
[325407495,1714854643711,-416.18818575,0.00027,2]
[325407496,1714854643721,-416.18818575,0.00027,2]
[325407497,1714854643730,-416.18818575,0.00027,2]
[325407498,1714854643739,-430.72,0.00027068,15]
[325407499,1714854643751,-154.09323599,0.00027225,2]
[325407500,1714854643763,-166.66666666,0.00027392,2]
[325407501,1714854643782,-300.0,0.00027397,2]
[325407502,1714854643797,-150.0,0.00027397,2]
[325407503,1714854643808,-222.58705407,0.0002745,2]
[325407504,1714854643819,-3167.46227607,0.00027548,2]
[325407505,1714854643828,-222.58705407,0.00027564,2]
[325407506,1714854643838,-157.20955542,0.00027642,2]
[325407507,1714854643847,-435.89,0.00027714,2]
[325407508,1714854643857,-252.25,0.00027714,2]
[325407509,1714854643867,-153.5496588,0.00027735,2]
[325407510,1714854643876,-154.84526219,0.00027754,2]
[325407511,1714854643889,-152.57440341,0.00027801,2]
[325407512,1714854643900,-152.57440341,0.00027822,2]
[325407513,1714854643911,-543.22508611,0.00027927,2]
[325407514,1714854643923,-700.0,0.00028,3]
[325407515,1714854643933,-334.59231,0.00028,2]
[325407516,1714854643944,-150.0,0.00028118,2]
[325407517,1714854643954,-543.22508611,0.00028182,2]
[325407518,1714854643964,-152.57440341,0.00028259,2]
[325407519,1714854643974,-154.84526219,0.00028401,2]
[325407520,1714854643983,-154.84526219,0.00028692,2]
[325407521,1714854643993,-169.46313178,0.00028716,2]
[325407522,1714854644002,-152.57440341,0.00028734,2]
[325407523,1714854644012,-543.22508611,0.00028776,2]
[325407524,1714854644022,-150.0,0.00028839,2]
[325407525,1714854644031,-574.1,0.00028841,7]
[325407526,1714854644041,-152.49817687,0.00028888,2]
[325407527,1714854644051,-492.82793342,0.00028911,2]
[325407528,1714854644060,-543.22508611,0.00028953,2]
[325407529,1714854644069,-663.83706763,0.00028967,2]
[325407530,1714854644079,-216.58947386,0.0002898,2]
[325407531,1714854644088,-157811.5933118,0.0002899,3]
[325407532,1714854644098,-199.62726191,0.0002899,3]
[325407533,1714854644108,-626.33513578,0.00028999,2]
[325407534,1714854644118,-1074.61897376,0.00028999,15]
[325407535,1714854644128,-564.04203693,0.00029,2]
[325407536,1714854644137,-2213.05089066,0.00029,2]
[325407537,1714854644148,-4223.75191683,0.00029,2]
[325407538,1714854644157,-155.0,0.00029,2]
[325407539,1714854644167,-443.64487331,0.00029,2]
[325407540,1714854644176,-293.40613074,0.00029,2]
[325407541,1714854644185,-155.0,0.00029,2]
[325407542,1714854644196,-835.89249881,0.00029,2]
[325407543,1714854644207,-835.89249881,0.00029,2]
[325407544,1714854644216,-835.89249881,0.00029,2]
[325407545,1714854644225,-835.89249881,0.00029,2]
[325407546,1714854644236,-835.89249881,0.00029,2]
[325407547,1714854644246,-835.89249881,0.00029,2]
[325407548,1714854644256,-835.89249881,0.00029,2]
[325407549,1714854644265,-835.89249881,0.00029,2]
[325407550,1714854644277,-835.89249881,0.00029,2]
[325407551,1714854644287,-835.89249881,0.00029,2]
[325407552,1714854644296,-835.89249881,0.00029,2]
[325407553,1714854644306,-835.89249881,0.00029,2]
[325407554,1714854644315,-835.89249881,0.00029,2]
[325407555,1714854644326,-835.89249881,0.00029,2]
[325407556,1714854644336,-835.89249881,0.00029,2]
[325407557,1714854644346,-835.89249881,0.00029,2]
[325407558,1714854644355,-835.89249881,0.00029,2]
[325407559,1714854644366,-835.89249881,0.00029,2]
[325407560,1714854644376,-835.89249881,0.00029,2]
[325407561,1714854644386,-835.89249881,0.00029,2]
[325407562,1714854644396,-835.89249881,0.00029,2]
[325407563,1714854644406,-835.89249881,0.00029,2]
[325407564,1714854644415,-835.89249881,0.00029,2]
[325407565,1714854644430,-835.89249881,0.00029,2]
[325407566,1714854644439,-835.89249881,0.00029,2]
[325407567,1714854644449,-835.89249881,0.00029,2]
[325407568,1714854644458,-835.89249881,0.00029,2]
[325407569,1714854644470,-835.89249881,0.00029,2]
[325407570,1714854644479,-835.89249881,0.00029,2]
[325407571,1714854644490,-835.89249881,0.00029,2]
[325407572,1714854644500,-835.89249881,0.00029,2]
[325407573,1714854644513,-835.89249881,0.00029,2]
[325407574,1714854644523,-835.89249881,0.00029,2]
[325407575,1714854644534,-835.89249881,0.00029,2]
[325407576,1714854644544,-835.89249881,0.00029,2]
[325407577,1714854644553,-835.89249881,0.00029,2]
[325407578,1714854644564,-835.89249881,0.00029,2]
[325407579,1714854644573,-835.89249881,0.00029,2]
[325407580,1714854644583,-835.89249881,0.00029,2]
[325407581,1714854644594,-835.89249881,0.00029,2]
[325407582,1714854644603,-835.89249881,0.00029,2]
[325407583,1714854644614,-835.89249881,0.00029,2]
[325407584,1714854644624,-835.89249881,0.00029,2]
[325407585,1714854644634,-835.89249881,0.00029,2]
[325407586,1714854644644,-835.89249881,0.00029,2]
[325407587,1714854644654,-835.89249881,0.00029,2]
[325407588,1714854644664,-835.89249881,0.00029,2]
[325407589,1714854644675,-835.89249881,0.00029,2]
[325407590,1714854644684,-835.89249881,0.00029,2]
[325407591,1714854644695,-835.89249881,0.00029,2]
[325407592,1714854644704,-835.89249881,0.00029,2]
[325407593,1714854644714,-835.89249881,0.00029,2]
[325407594,1714854644723,-835.89249881,0.00029,2]
[325407595,1714854644733,-835.89249881,0.00029,2]
[325407596,1714854644743,-835.89249881,0.00029,2]
[325407597,1714854644753,-835.89249881,0.00029,2]
[325407598,1714854644764,-835.89249881,0.00029,2]
[325407599,1714854644775,-835.89249881,0.00029,2]
[325407600,1714854644785,-835.89249881,0.00029,2]
[325407601,1714854644794,-835.89249881,0.00029,2]
[325407602,1714854644803,-835.89249881,0.00029,2]
[325407603,1714854644815,-835.89249881,0.00029,2]
[325407604,1714854644826,-835.89249881,0.00029,2]
[325407605,1714854644835,-835.89249881,0.00029,2]
[325407606,1714854644846,-835.89249881,0.00029,2]
[325407607,1714854644857,-150.5,0.0002908,15]
[325407608,1714854644867,-150.5,0.0002908,15]
[325407609,1714854644876,-150.5,0.0002909,15]
[325407610,1714854644886,-150.5,0.0002909,15]
[325407611,1714854644895,-150.5,0.000291,15]
[325407612,1714854644905,-150.5,0.000291,15]
[325407613,1714854644916,-848.43342503,0.00029106,2]
[325407614,1714854644927,-543.22508611,0.00029112,2]
[325407615,1714854644939,-151.76757164,0.00029297,2]
[325407616,1714854644950,-151.76757164,0.00029317,2]
[325407617,1714854644960,-153.61655889,0.00029382,2]
[325407618,1714854644971,-153.97306686,0.0002944,2]
[325407619,1714854644980,-151.90116213,0.00029488,2]
[325407620,1714854644989,-222.58705407,0.00029516,2]
[325407621,1714854644999,-150.0,0.0002956,2]
[325407622,1714854645008,-169.46313178,0.00029642,2]
[325407623,1714854645018,-268.2,0.00029734,7]
[325407624,1714854645029,-150.5,0.0002997,15]
[325407625,1714854645040,-150.5,0.0002998,15]
[325407626,1714854645051,-150.5,0.0002999,15]
[325407627,1714854645060,-1606.44164946,0.0003,4]
[325407628,1714854645070,-5677.45044794,0.0003,2]
[325407629,1714854645079,-624.79,0.0003,4]
[325407630,1714854645090,-160.0,0.0003,2]
[325407631,1714854645099,-1000.0,0.0003,4]
[325407632,1714854645109,-1000.0,0.0003,4]
[325407633,1714854645119,-1000.0,0.0003,4]
[325407634,1714854645129,-1000.0,0.0003,4]
[325407635,1714854645138,-1001.0,0.0003,5]
[325407636,1714854645148,-750.0,0.0003,3]
[325407637,1714854645156,-14000.0,0.0003,4]
[325407638,1714854645166,-14000.0,0.0003,4]
[325407639,1714854645175,-14000.0,0.0003,4]
[325407640,1714854645185,-543.22508611,0.00030001,7]
[325407641,1714854645195,-157.20955542,0.00030054,7]
[325407642,1714854645204,-168.34938707,0.00030075,7]
[325407643,1714854645213,-268.2,0.00030107,7]
[325407644,1714854645222,-300.0,0.00030136,2]
[325407645,1714854645231,-150.0,0.00030197,2]
[325407646,1714854645241,-152.49817687,0.00030244,7]
[325407647,1714854645250,-154.84526219,0.00030268,7]
[325407648,1714854645260,-150.0,0.00030281,2]
[325407649,1714854645270,-160.0,0.00030526,30]
[325407650,1714854645279,-150.0,0.00030526,3]
[325407651,1714854645288,-154.84526219,0.00030558,7]
[325407652,1714854645298,-166.66666666,0.00030688,7]
[325407653,1714854645307,-152.57440341,0.00030725,7]
[325407654,1714854645316,-152.58015286,0.0003073,7]
[325407655,1714854645326,-430.72,0.00030804,15]
[325407656,1714854645335,-574.1,0.00030881,14]
[325407657,1714854645347,-150.0,0.000309,2]
[325407658,1714854645357,-157.20955542,0.00030917,7]
[325407659,1714854645366,-543.22508611,0.00030917,7]
[325407660,1714854645375,-157.21535149,0.00030927,7]
[325407661,1714854645385,-20508.57195787,0.0003098,2]
[325407662,1714854645394,-240.91,0.0003098,15]
[325407663,1714854645403,-150.5,0.0003099,15]
[325407664,1714854645412,-150.0,0.00031002,2]
[325407665,1714854645423,-159.97386242,0.00031024,7]
[325407666,1714854645437,-543.22508611,0.00031228,7]
[325407667,1714854645446,-154.84526219,0.00031249,7]
[325407668,1714854645455,-151.0,0.00031448,2]
[325407669,1714854645465,-165.13932024,0.00031588,7]
[325407670,1714854645477,-1033.0,0.00031723,5]
[325407671,1714854645488,-150.0,0.00031723,2]
[325407672,1714854645499,-848.43342503,0.00031807,3]
[325407673,1714854645510,-222.58705407,0.00031867,7]
[325407674,1714854645521,-177.22142385,0.00031949,7]
[325407675,1714854645530,-153.30006932,0.00031996,2]
[325407676,1714854645540,-1000.0,0.00032,4]
[325407677,1714854645550,-1000.0,0.00032,4]
[325407678,1714854645559,-152.49817687,0.00032172,7]
[325407679,1714854645570,-222.58705407,0.00032173,7]
[325407680,1714854645579,-663.83706763,0.000322,2]
[325407681,1714854645590,-152.0,0.00032215,3]
[325407682,1714854645599,-152.57440341,0.00032292,7]
[325407683,1714854645608,-164.6234743,0.00032339,7]
[325407684,1714854645619,-150.0,0.00032444,2]
[325407685,1714854645630,-151.76757164,0.00032467,7]
[325407686,1714854645640,-154.86984597,0.00032806,7]
[325407687,1714854645650,-300.0,0.00032876,2]
[325407688,1714854645660,-157.20955542,0.00032895,7]
[325407689,1714854645670,-574.1,0.0003292,14]
[325407690,1714854645679,-492.82793342,0.00032939,2]
[325407691,1714854645689,-268.2,0.00032986,14]
[325407692,1714854645701,-175.84005745,0.00032989,7]
[325407693,1714854645710,-1000.0,0.00033,5]
[325407694,1714854645719,-1000.0,0.00033,5]
[325407695,1714854645728,-718.0,0.00033,4]
[325407696,1714854645738,-150.0,0.00033,2]
[325407697,1714854645748,-334.59231,0.00033,2]
[325407698,1714854645757,-7233.77,0.00033038,2]
[325407700,1714854645767,-543.22508611,0.00033067,7]
[325407701,1714854645776,-151.90116213,0.00033121,7]
[325407703,1714854645785,-169.46313178,0.00033151,7]
[325407704,1714854645795,-150.0,0.00033165,2]
[325407705,1714854645805,-151.76757164,0.00033224,7]
[325407706,1714854645815,-203.0,0.0003327,2]
[325407707,1714854645824,-211.0,0.0003327,2]
[325407708,1714854645835,-154.84526219,0.00033318,7]
[325407709,1714854645846,-268.2,0.00033338,14]
[325407710,1714854645856,-1033.0,0.00033392,5]
[325407711,1714854645865,-152.49817687,0.0003342,7]
[325407712,1714854645876,-153.20799381,0.00033456,2]
[325407713,1714854645886,-543.22508611,0.00033457,7]
[325407714,1714854645896,-168.34938709,0.00033554,7]
[325407715,1714854645905,-435.89,0.00033785,2]
[325407716,1714854645915,-252.25,0.00033785,2]
[325407718,1714854645926,-152.57440341,0.00033881,7]
[325407720,1714854645937,-150.0,0.00033886,2]
[325407722,1714854645947,-7010.03517629,0.00033972,7]
[325407724,1714854645958,-1000.0,0.00034,6]
[325407725,1714854645968,-543.22508611,0.00034019,7]
[325407726,1714854645978,-782.8,0.0003411,2]
[325407727,1714854645987,-1044.7,0.0003411,2]
[325407728,1714854645996,-300.0,0.0003411,2]
[325407729,1714854646006,-205.74,0.0003411,2]
[325407730,1714854646015,-543.22508611,0.00034199,7]
[325407731,1714854646025,-151.90116213,0.00034201,7]
[325407732,1714854646035,-169.46313178,0.00034226,7]
[325407733,1714854646045,-157.20955542,0.00034227,7]
[325407734,1714854646055,-164.167095,0.000345,8]
[325407735,1714854646064,-848.43342503,0.00034508,6]
[325407736,1714854646074,-203.0,0.0003451,2]
[325407737,1714854646084,-211.0,0.0003451,2]
[325407738,1714854646094,-169.46313178,0.00034524,7]
[325407739,1714854646104,-430.72,0.0003454,15]
[325407740,1714854646114,-150.0,0.00034607,2]
[325407741,1714854646123,-1393.93,0.00034613,2]
[325407742,1714854646133,-851.64,0.00034613,2]
[325407743,1714854646142,-169.46313178,0.00034664,7]
[325407744,1714854646151,-268.2,0.00034678,14]
[325407745,1714854646160,-152.0,0.00034845,4]
[325407746,1714854646170,-166.6666667,0.00034869,7]
[325407747,1714854646179,-529.7,0.00034887,2]
[325407748,1714854646189,-419.34,0.00034887,2]
[325407749,1714854646198,-300.62,0.00034887,2]
[325407750,1714854646208,-26330.23490107,0.000349,2]
[325407751,1714854646218,-574.1,0.0003496,14]
[325407752,1714854646227,-8402.31598906,0.00035,4]
[325407753,1714854646237,-234.53987084,0.00035,120]
[325407754,1714854646247,-1000.0,0.00035,6]
[325407755,1714854646256,-1000.0,0.00035,6]
[325407756,1714854646265,-20000.0,0.00035,7]
[325407757,1714854646275,-150.0,0.00035,8]
[325407758,1714854646284,-268.2,0.00035083,14]
[325407759,1714854646294,-154.84526219,0.00035088,7]
[325407760,1714854646303,-154.869846,0.0003514,7]
[325407761,1714854646313,-1033.0,0.0003515,5]
[325407762,1714854646322,-222.58705407,0.00035226,7]
[325407763,1714854646331,-543.22508611,0.00035258,7]
[325407764,1714854646341,-150.0,0.00035328,2]
[325407765,1714854646351,-663.83706763,0.00035433,2]
[325407766,1714854646360,-169.46313178,0.00035491,7]
[325407767,1714854646369,-150.0,0.000355,8]
[325407768,1714854646379,-543.22508611,0.00035511,7]
[325407770,1714854646388,-157.20955542,0.00035528,7]
[325407772,1714854646397,-153.5496588,0.00035555,7]
[325407773,1714854646406,-222.58705407,0.00035594,7]
[325407774,1714854646416,-300.0,0.00035616,2]
[325407775,1714854646428,-169.63031736,0.00035702,7]
[325407776,1714854646438,-203.0,0.0003576,2]
[325407777,1714854646447,-211.0,0.0003576,2]
[325407780,1714854646456,-222.0,0.0003576,2]
[325407782,1714854646467,-157.20955542,0.00035817,7]
[325407784,1714854646476,-216.0,0.0003584,2]
[325407786,1714854646484,-214.0,0.0003584,2]
[325407788,1714854646495,-2946.893186,0.0003587,7]
[325407790,1714854646504,-206.6,0.0003589,120]
[325407792,1714854646514,-1540.82,0.0003589,120]
[325407793,1714854646523,-150.0,0.00036,8]
[325407794,1714854646532,-159.49167372,0.00036005,7]
[325407795,1714854646541,-222.58705407,0.00036011,7]
[325407796,1714854646551,-150.0,0.00036049,2]
[325407797,1714854646560,-150.0,0.00036179,2]
[325407798,1714854646569,-169.46313178,0.00036205,7]
[325407799,1714854646578,-222.58705407,0.0003624,7]
[325407800,1714854646587,-153.5496588,0.00036342,7]
[325407801,1714854646597,-151.76757164,0.0003636,7]
[325407802,1714854646606,-151.90116213,0.00036375,7]
[325407803,1714854646615,-156.03484494,0.00036406,7]
[325407804,1714854646624,-153.5496588,0.00036457,7]
[325407805,1714854646633,-150.0,0.00036488,2]
[325407806,1714854646642,-173.050505,0.00036498,36]
[325407807,1714854646651,-150.0,0.000365,9]
[325407808,1714854646661,-150.0,0.00036564,2]
[325407809,1714854646670,-150.0,0.00036579,2]
[325407810,1714854646679,-154.84526224,0.00036659,7]
[325407811,1714854646688,-152.49817687,0.00036662,7]
[325407812,1714854646698,-150.0,0.00036716,2]
[325407813,1714854646707,-150.0,0.00036746,2]
[325407814,1714854646716,-150.0,0.0003677,2]
[325407815,1714854646725,-150.0,0.00036787,2]
[325407816,1714854646735,-150.0,0.00036799,2]
[325407817,1714854646744,-150.0,0.00036801,2]
[325407818,1714854646754,-150.0,0.00036816,2]
[325407819,1714854646765,-879.00683229,0.0003683,2]
[325407820,1714854646775,-150.0,0.00036849,2]
[325407821,1714854646785,-165.13932025,0.0003687,7]
[325407822,1714854646794,-1074.61897376,0.00036899,30]
[325407823,1714854646804,-1074.61897376,0.00036899,30]
[325407824,1714854646813,-201.36673113,0.000369,2]
[325407825,1714854646823,-456.65308986,0.000369,7]
[325407826,1714854646832,-1130.7899771,0.000369,2]
[325407827,1714854646842,-150.0,0.0003691,2]
[325407828,1714854646851,-500.0,0.00036965,3]
[325407829,1714854646860,-492.82793342,0.00036967,2]
[325407830,1714854646870,-500.0,0.00036974,3]
[325407831,1714854646879,-800.0,0.0003698,30]
[325407832,1714854646888,-500.0,0.00036982,3]
[325407833,1714854646898,-150.0,0.00036984,2]
[325407834,1714854646907,-150.0,0.00036985,2]
[325407835,1714854646917,-216.58947386,0.0003699,2]
[325407836,1714854646927,-500.0,0.00036991,3]
[325407837,1714854646937,-203.1,0.00036999,2]
[325407838,1714854646946,-203.11,0.00036999,2]
[325407839,1714854646956,-513.0661015,0.00036999,2]